Workbook

Sheet Instructions
B2: This calculator provides an analysis of the business case for adding clinical staff to increase capacity for wellness care and chronic care management, or to estimate revenues that may be available from increasing these services using existing staff. The calculator considers traditional Medicare patients and payments only; Medicare Advantage and some commercial insurers may also pay for these or similar services. These are only estimates, and your particular results may vary.
D4: ← | E4: Green cells contain intermediate calculations for estimating costs and revenues.
D6: ← | E6: Values in orange cells can be changed by you.
C8: 0.1
C9: 0.1 | E9: The percentages in these cells should add to 100%
C10: 0.8
D12: ← | E12: Hover cursor over cells with red corners for more information.
D14: ← | E14: Click on this button to return the values in the orange cells to their initial values.
D16: ← | E16: Click on this button to save the scenario. The scenario will be saved as an image with the values fixed. It will be inserted into a new worksheet in this workbook.
B19: This material was prepared by Comagine Health, formerly HealthInsight, the Medicare Quality Innovation Network -Quality Improvement Organization for Nevada, New Mexico, Oregon and Utah, under contract with the Centers for Medicare & Medicaid Services (CMS), an agency of the U.S. Department of Health and Human Services. The contents presented do not necessarily reflect CMS policy.

Sheet Calculator
B2: YOUR HOSPITAL'S FEE-FOR-SERVICE MEDICARE DATA:
B4: HOSPITAL NAME
B6: Medicare FFS (Part B) Patients Attributed to Practice | F6: 0
B8: Annual Wellness Visits | I8: Chronic Care Management | N8: Transitional Care Management
B9: Visit Type | E9: Number | G9: % | H9: % of Total | I9: Chronic Care Management Service | L9: Number | M9: Unique Pts | N9: Transitional Care Management Service | R9: Number | S9: Unique Pts
B10: Any Type of Wellness Visit | E10: =E11+E12+E13 -> 0 | G10: =E10/$F$6 ->  | I10: 20 Minutes (99490) | L10: 0 | M10: 0 | N10: Moderate Complexity w/in 14 Days of Discharge (99495) | R10: 50 | S10: 0
B11: Welcome to Medicare (G0402) | E11: 0 | G11: =E11/$F$6 ->  | H11: =IF(E11=0,"0%",(E11/$E$10)) -> 0% | I11: Complex - 60 Min. (99487) | L11: 0 | M11: 0
B12: Initial AWV (G0438) | E12: 0 | G12: =E12/$F$6 ->  | H12: =IF(E12=0,"0%",(E12/$E$10)) -> 0% | I12: Complex - Addl. 30 Min. (99489) | L12: 0 | M12: 0 | N12: High Complexity w/in 7 Days of Discharge (99496) | R12: 50 | S12: 0
B13: Subsequent AWV (G0439) | E13: 0 | G13: =E13/$F$6 ->  | H13: =IF(E13=0,"0%",(E13/$E$10)) -> 0%
B15: ESTIMATED TOTAL MEDICARE PAYMENT | H15: =(E11*J29)+(E12*J30)+(E13*J31) -> 0 | M15: =(L10*J40)+(L11*J41)+(L12*J42) -> 0 | S15: =(R10*J49)+(R12*J50) -> 20178
K17: ESTIMATED TOTAL MEDICARE PAYMENT FOR ALL SERVICES (AWVs, CCM and TCM) COMBINED | S17: =SUM(H15,M15,S15) -> 20178
B20: BUSINESS CASE CALCULATOR:
B22: Medicare FFS Population | E22: 500 | G22: Distribution of Service Types | H22: Participation Count | I22: Annual Total | J22: 2018 National Fee3 | K22: Annual Revenues | L22: Provider Time4 (minutes/unit) | M22: Clinical Staff Time4 (minutes/unit) | N22: Annual Provider Time (hours) | O22: Annual Clinical Staff Time (hours) | P22: Total Annual Clinical Staff and Provider Cost | R22: Net Revenue
B23: Clinical Staff1 Cost - Fully Loaded /Hour | E23: 55
B24: Provider2 Cost - Fully Loaded /Hour | E24: 165
B26: ANNUAL WELLNESS VISITS
B27: Wellness Care - Overall Participation | G27: 0.7 | H27: =ROUND(G27*E22,0) -> 350
B29: Welcome to Medicare (G0402) | G29: 0.1 | H29: =ROUND((E22*G27*G29),0) -> 35 | I29: =H29 -> 35 | J29: 169.92 | K29: =J29*I29 -> 5947.2 | L29: 30 | M29: 60 | N29: =(L29/60)*I29 -> 17.5 | O29: =(I29/60)*M29 -> 35 | P29: =(O29*E$23)+(N29*E$24) -> 4812.5
B30: Initial AWV (G0438) | G30: 0.1 | H30: =ROUND((E22*G27*G30),0) -> 35 | I30: =H30 -> 35 | J30: 175.32 | K30: =J30*I30 -> 6136.2 | L30: 25 | M30: 70 | N30: =(L30/60)*I30 -> 14.58333333 | O30: =(I30/60)*M30 -> 40.83333333 | P30: =(O30*E$23)+(N30*E$24) -> 4652.083333
B31: Subsequent AWV (G0439) | G31: 0.8 | H31: =ROUND((E22*G27*G31),0) -> 280 | I31: =H31 -> 280 | J31: 119.16 | K31: =J31*I31 -> 33364.8 | L31: 20 | M31: 60 | N31: =(L31/60)*I31 -> 93.33333333 | O31: =(I31/60)*M31 -> 280 | P31: =(O31*E$23)+(N31*E$24) -> 30800
E33: TOTAL | J33: =SUM(K29:K31) -> 45448.2 | O33: =SUM(P29:P31) -> 40264.58333 | R33: =J33-O33 -> 5183.616667
B35: CHRONIC CARE MANAGEMENT
B36: Patients Eligible for Chronic Care Management | G36: 0.3 | H36: =ROUND(G36*E22,0) -> 150
B37: Patients Eligible for CCM Who Participate | G37: 0.5 | H37: =ROUND(G36*G37*E22,0) -> 75
B39: Monthly: | C39: Eligible Pts Receiving CCM (any type) | G39: 0.25 | H39: =ROUND(H37*G39,0) -> 19
C40: CCM - 20 Minutes (99490) | G40: 0.7 | H40: =ROUND(H39*G40,0) -> 13 | I40: =H40*12 -> 156 | J40: 42.84 | K40: =J40*I40 -> 6683.04 | L40: 5 | M40: 20 | N40: =(L40/60)*I40 -> 13 | O40: =(I40/60)*M40 -> 52 | P40: =(O40*E$23)+(N40*E$24) -> 5005
C41: CCM - Complex; 60 minutes (99487) | G41: 0.3 | H41: =ROUND(H39*G41,0) -> 6 | I41: =H41*12 -> 72 | J41: 94.68 | K41: =J41*I41 -> 6816.96 | L41: 15 | M41: 50 | N41: =(L41/60)*I41 -> 18 | O41: =(I41/60)*M41 -> 60 | P41: =(O41*E$23)+(N41*E$24) -> 6270
C42: CCM - Complex; Addl. 30 Minutes(99489) | G42: 0.05 | H42: =ROUND(H39*G42,0) -> 1 | I42: =H42*12 -> 12 | J42: 47.16 | K42: =J42*I42 -> 565.92 | L42: 10 | M42: 25 | N42: =(L42/60)*I42 -> 2 | O42: =(I42/60)*M42 -> 5 | P42: =(O42*E$23)+(N42*E$24) -> 605
E44: TOTAL | J44: =SUM(K40:K42) -> 14065.92 | O44: =SUM(P40:P42) -> 11880 | R44: =J44-O44 -> 2185.92
B46: TRANSITONAL CARE MANAGEMENT
B47: Patients w/ Eligible Discharges per Year | G47: 0.15 | H47: =ROUND(E22*G47,0) -> 75
B48: Patients w/ Eligible Discharges Who Participate | G48: 0.5 | H48: =ROUND(G48*H47,0) -> 38
B49: TCM - Mod. Complexity w/in 14 Days of Discharge (99495) | G49: 0.5 | H49: =ROUND((E$22*G$47*G$48*G49),0) -> 19 | I49: =H49 -> 19 | J49: 167.04 | K49: =I49*J49 -> 3173.76 | L49: 40 | M49: 45 | N49: =(L49/60)*I49 -> 12.66666667 | O49: =(M49/60)*I49 -> 14.25 | P49: =(O49*E$23)+(N49*E$24) -> 2873.75
B50: TCM - High Complexity w/in 7 Days of Discharge (99496) | G50: 0.5 | H50: =ROUND((E$22*G$47*G$48*G50),0) -> 19 | I50: =H50 -> 19 | J50: 236.52 | K50: =I50*J50 -> 4493.88 | L50: 50 | M50: 60 | N50: =(L50/60)*I50 -> 15.83333333 | O50: =(M50/60)*I50 -> 19 | P50: =(O50*E$23)+(N50*E$24) -> 3657.5
E52: TOTAL | J52: =SUM(K49:K50) -> 7667.64 | O52: =SUM(P49:P50) -> 6531.25 | R52: =J52-O52 -> 1136.39
B55: ALL SERVICES (AWV, CCM and TCM) COMBINED5 | K55: =SUM(J33,J44,J52) -> 67181.76 | P55: =SUM(O33,O44,O52) -> 58675.83333 | R55: =SUM(R33,R44,R52) -> 8505.926667
B58: Notes:
B59: 1 | C59: Clinical staff includes RN's, MA's, care managers and similar staff.
B60: 2 | C60: Providers include MD's, DO's, NP's and PA's
B61: 3 | C61: Actual Medicare payment includes geographic adjustment.
B62: 4 | C62: Estimates of provider and staff time for services are based on Medicare requirements, literature review, input from subject matter experts and analysis of task requirements.
B63: 5 | C63: Practices may realize additional revenues from preventive services, immunizations, advance care planning, chronic care plan development, and prolonged non-face-to-face services. Does not include incentives and bonuses that may be earned under value-based payment programs.

Sheet Defaults (hidden)
D1: Distribution of Service Types | E1: Provider Time (minutes/unit) | F1: Clinical Staff Time (minutes/unit)
B2: Clinical Staff Cost - Fully Loaded, per Hour | C2: 55
B3: Provider Cost - Fully Loaded, per Hour | C3: 165
B4: ANNUAL WELLNESS VISITS
B5: Wellness care - Overall Participation | D5: 0.7
B7: Welcome to Medicare (G0402)) | D7: 0.1 | E7: 30 | F7: 60
B8: Initial AWV (G0438) | D8: 0.1 | E8: 25 | F8: 70
B9: Subsequent AWV (G0439) | D9: 0.8 | E9: 20 | F9: 60
B10: CHRONIC CARE MANAGEMENT
B11: % of Patients Eligible | D11: 0.3
B12: % of Eligible Patients Who Participate | D12: 0.5
B13: Eligible Pts Receiving CCM (any type) | D13: 0.25
B14: CCM - 20 Minutes (99490) | D14: 0.7 | E14: 5 | F14: 20
B15: CCM - Complex; 60 minutes (99487) | D15: 0.3 | E15: 15 | F15: 50
B16: CCM - Complex; Addl. 30 Minutes(99489) | D16: 0.05 | E16: 10 | F16: 25
B18: TRANSITONAL CARE MANAGEMENT
B19: % of Patients w/ Eligible Discharges per Year | D19: 0.15
B20: % of Eligible Patients Who Participate | D20: 0.5
B21: TCM - Moderate Complexity w/in 14 Days of Discharge (99495) | D21: 0.5 | E21: 40 | F21: 45
B22: TCM - High Complexity w/in 7 Days of Discharge (99496) | D22: 0.5 | E22: 50 | F22: 60
